[Event "FIDE CB Open 2022"]
[Site "Ceske Budejovice"]
[Date "2022.07.03"]
[Round "3.40"]
[White "Svoboda, Petr"]
[Black "Nejdl, Eduard"]
[Result "1-0"]
[ECO "B03"]
[WhiteElo "2088"]
[BlackElo "1951"]
[Annotator "ChessBase"]
[PlyCount "120"]
[EventDate "2022.07.01"]
[EventType "swiss"]
[EventCountry "CZE"]
[SourceTitle "playchess.com"]
[Source "ChessBase"]
[SourceQuality "1"]
[TimeControl "40/5400+30:1800+30"]

1. e4 {[%emt 0:00:06]} Nf6 {[%emt 0:00:23]} 2. e5 {[%emt 0:00:06]} Nd5 {[%emt 0:00:05]} 3. c4 {[%emt 0:00:16]} Nb6 {[%emt 0:00:11]} 4. d4 {[%emt 0:00:19]} d6 {[%emt 0:00:16]} 5. f4 {[%emt 0:00:17]} dxe5 {[%emt 0:00:25]} 6. fxe5 {[%emt 0:00:12]} Bf5 {[%emt 0:00:10]} 7. Nc3 {[%emt 0:00:42]} e6 {[%emt 0:00:55]} 8. Be3 {[%emt 0:01:59]} Nc6 {[%emt 0:03:14]} 9. Be2 {[%emt 0:03:15]} Be7 {[%emt 0:01:52]} 10. Nf3 {[%emt 0:00:45]} O-O {[%emt 0:05:21]} 11. O-O {[%emt 0:00:52]} Bg6 {[%emt 0:00:07]} 12. Rc1 {[%emt 0:04:45]} Qd7 {[%emt 0:01:26]} 13. Qd2 {[%emt 0:13:52]} Rfd8 {[%emt 0:04:21]} 14. c5 {[%emt 0:04:07]} Nd5 {[%emt 0:04:07]} 15. Nxd5 {[%emt 0:02:38]} Qxd5 {[%emt 0:02:16]} 16. Bd3 {[%emt 0:01:16]} Bxd3 {[%emt 0:08:11]} 17. Qxd3 {[%emt 0:00:06]} Nxe5 {[%emt 0:00:24]} 18. Qc2 {[%emt 0:01:01]} Ng4 {[%emt 0:03:52]} 19. Bf4 {[%emt 0:03:31]} c6 {[%emt 0:01:26]} 20. h3 {[%emt 0:03:05]} Nf6 {[%emt 0:00:09]} 21. b4 {[%emt 0:06:17]} Qh5 {[%emt 0:06:30]} 22. Rce1 {[%emt 0:01:14]} Nd5 {[%emt 0:01:15]} 23. Bd2 {[%emt 0:00:47]} Qg6 {[%emt 0:03:41]} 24. Qd1 {[%emt 0:03:10]} Qd3 {[%emt 0:03:11]} 25. Kh1 {[%emt 0:02:37]} Bf6 {[%emt 0:02:52]} 26. Qb3 {[%emt 0:11:37]} Qxb3 {[%emt 0:02:46]} 27. axb3 {[%emt 0:00:08]} h6 {[%emt 0:00:10]} 28. Re4 {[%emt 0:01:24]} Nc7 {[%emt 0:03:45]} 29. Rg4 {[%emt 0:02:41]} Kf8 {[%emt 0:02:59]} 30. Bf4 {[%emt 0:02:23]} Nd5 {[%emt 0:01:52]} 31. Bd6+ {[%emt 0:05:40]} Rxd6 {[%emt 0:01:07]} 32. cxd6 {[%emt 0:00:45]} Ne3 {[%emt 0:00:12]} 33. Nh2 {[%emt 0:02:34]} Nxf1 {[%emt 0:00:47]} 34. Nxf1 {[%emt 0:00:06]} Rd8 {[%emt 0:01:10]} 35. Ne3 {[%emt 0:01:58]} Rxd6 {[%emt 0:01:58]} 36. Nc2 {[%emt 0:00:05]} Rd5 {[%emt 0:01:38]} 37. Kg1 {[%emt 0:00:26]} Be7 {[%emt 0:00:41]} 38. Kf1 {[%emt 0:00:26]} f5 {[%emt 0:02:40]} 39. Rg3 {[%emt 0:01:17]} Bf6 {[%emt 0:01:00]} 40. Re3 {[%emt 0:00:44]} Kf7 {[%emt 0:00:24]} 41. Rc3 {[%emt 0:31:48]} Bxd4 {[%emt 0:33:07]} 42. Rc4 {[%emt 0:00:15]} Bb6 {[%emt 0:00:47]} 43. Ke2 {[%emt 0:00:30]} Kf6 {[%emt 0:00:38]} 44. Ne1 {[%emt 0:00:33]} e5 {[%emt 0:02:35]} 45. Nd3 {[%emt 0:00:28]} g5 {[%emt 0:00:44]} 46. Rc1 {[%emt 0:00:27]} Rb5 {[%emt 0:00:57]} 47. Rc4 {[%emt 0:01:46]} e4 {[%emt 0:01:53]} 48. Nc1 {[%emt 0:00:23]} Bc7 {[%emt 0:00:49]} 49. Na2 {[%emt 0:00:15]} Bd6 {[%emt 0:00:24]} 50. Rd4 {[%emt 0:00:54]} Ke5 {[%emt 0:01:12]} 51. Rd1 {[%emt 0:00:32]} Bxb4 {[%emt 0:00:36]} 52. Rd8 {[%emt 0:00:29]} Ba5 {[%emt 0:00:47]} 53. Re8+ {[%emt 0:00:22]} Kf4 {[%emt 0:02:22]} 54. Kf1 {[%emt 0:00:10]} Bb6 {[%emt 0:03:20]} 55. Nc1 {[%emt 0:00:38]} Ke3 {[%emt 0:01:04]} 56. Re6 {[%emt 0:00:30]} Kd2 {[%emt 0:01:24]} 57. Ne2 {[%emt 0:00:27]} Rxb3 {[%emt 0:00:44]} 58. Rd6+ {[%emt 0:00:34]} Ke3 {[%emt 0:00:44]} 59. Rd1 {[%emt 0:00:41]} f4 {[%emt 0:01:19]} 60. Re1 {[%emt 0:00:06]} Kd2 {[%emt 0:01:09]} 1-0

[Event "FIDE CB Open 2022"]
[Site "Ceske Budejovice"]
[Date "2022.07.03"]
[Round "3.41"]
[White "Hammel, Juergen"]
[Black "Stastna, Martina"]
[Result "1/2-1/2"]
[ECO "C45"]
[WhiteElo "1650"]
[BlackElo "1912"]
[Annotator "NA"]
[PlyCount "47"]
[EventDate "2022.07.01"]
[EventType "swiss"]
[EventCountry "CZE"]
[SourceTitle "playchess.com"]
[Source "ChessBase"]
[SourceQuality "1"]
[TimeControl "40/5400+30:1800+30"]

1. e4 {[%emt 0:00:05]} e5 {[%emt 0:00:10]} 2. Nf3 {[%emt 0:00:11]} Nc6 {[%emt 0:00:15]} 3. d4 {[%emt 0:00:15]} exd4 {[%emt 0:00:18]} 4. Nxd4 {[%emt 0:00:12]} Bc5 {[%emt 0:00:42]} 5. Be3 {[%emt 0:00:58]} Qf6 {[%emt 0:01:23]} 6. c3 {[%emt 0:01:10]} Nge7 {[%emt 0:01:56]} 7. g3 {[%emt 0:03:47]} Bb6 {[%emt 0:02:34]} 8. Bg2 {[%emt 0:03:30]} Nxd4 {[%emt 0:05:34]} 9. cxd4 {[%emt 0:00:48]} d6 {[%emt 0:02:10]} 10. Nc3 {[%emt 0:00:38]} O-O {[%emt 0:10:37]} 11. O-O {[%emt 0:02:01]} Qg6 {[%emt 0:06:14]} 12. Qd2 {[%emt 0:05:14]} Qh5 {[%emt 0:07:33]} 13. Na4 {[%emt 0:02:58]} Bh3 {[%emt 0:01:47]} 14. Nxb6 {[%emt 0:00:50]} axb6 {[%emt 0:06:15]} 15. f4 {[%emt 0:02:56]} Bxg2 {[%emt 0:04:33]} 16. Qxg2 {[%emt 0:00:13]} d5 {[%emt 0:00:34]} 17. g4 {[%emt 0:03:09]} Qg6 {[%emt 0:02:21]} 18. f5 {[%emt 0:02:27]} Qd6 {[%emt 0:03:17]} 19. e5 {[%emt 0:00:46]} Qd7 {[%emt 0:01:46]} 20. f6 {[%emt 0:02:23]} Nc6 {[%emt 0:01:37]} 21. fxg7 {[%emt 0:01:20]} Rfe8 {[%emt 0:01:26]} 22. Rf3 {[%emt 0:06:35]} Ra4 {[%emt 0:04:37]} 23. Raf1 {[%emt 0:04:18]} Nd8 {[%emt 0:04:43]} 24. h3 {[%emt 0:04:44]} 1/2-1/2

[Event "FIDE CB Open 2022"]
[Site "Ceske Budejovice"]
[Date "2022.07.03"]
[Round "3.42"]
[White "Svoboda, Daniel"]
[Black "Saravanan Durga"]
[Result "0-1"]
[ECO "B22"]
[WhiteElo "1679"]
[BlackElo "1908"]
[Annotator "ChessBase"]
[PlyCount "70"]
[EventDate "2022.07.01"]
[EventType "swiss"]
[EventCountry "CZE"]
[SourceTitle "playchess.com"]
[Source "ChessBase"]
[SourceQuality "1"]
[TimeControl "40/5400+30:1800+30"]

1. e4 {[%emt 0:00:04]} c5 {[%emt 0:00:09]} 2. c3 {[%emt 0:00:34]} Nf6 {[%emt 0:00:08]} 3. e5 {[%emt 0:00:07]} Nd5 {[%emt 0:00:05]} 4. d4 {[%emt 0:00:18]} cxd4 {[%emt 0:00:07]} 5. cxd4 {[%emt 0:00:08]} e6 {[%emt 0:00:07]} 6. Nf3 {[%emt 0:00:34]} d6 {[%emt 0:00:05]} 7. Bc4 {[%emt 0:01:09]} Nc6 {[%emt 0:00:11]} 8. O-O {[%emt 0:01:41]} Be7 {[%emt 0:00:10]} 9. Nc3 {[%emt 0:03:42]} Nxc3 {[%emt 0:01:48]} 10. bxc3 {[%emt 0:01:46]} dxe5 {[%emt 0:00:06]} 11. dxe5 {[%emt 0:02:57]} Qc7 {[%emt 0:00:41]} 12. Bf4 {[%emt 0:11:52]} b6 {[%emt 0:15:30]} 13. Bb5 {[%emt 0:11:33]} Bb7 {[%emt 0:04:05]} 14. Nd4 {[%emt 0:03:48]} O-O {[%emt 0:03:03]} 15. Bxc6 {[%emt 0:09:37]} Bxc6 {[%emt 0:00:16]} 16. Qg4 {[%emt 0:00:39]} Rfd8 {[%emt 0:22:36]} 17. Rfd1 {[%emt 0:09:24]} Ba4 {[%emt 0:34:19]} 18. Rd3 {[%emt 0:04:32]} Bc2 {[%emt 0:00:09]} 19. Rg3 {[%emt 0:03:07]} Bg6 {[%emt 0:00:04]} 20. Bg5 {[%emt 0:03:07]} Bxg5 {[%emt 0:03:14]} 21. Qxg5 {[%emt 0:00:08]} Rd5 {[%emt 0:01:25]} 22. Re1 {[%emt 0:02:14]} b5 {[%emt 0:05:09]} 23. h4 {[%emt 0:04:51]} Qd8 {[%emt 0:02:43]} 24. Qg4 {[%emt 0:08:48]} h5 {[%emt 0:00:05]} 25. Qf4 {[%emt 0:00:15]} Qd7 {[%emt 0:00:24]} 26. Qf3 {[%emt 0:06:44]} Rc8 {[%emt 0:01:07]} 27. a3 {[%emt 0:05:41]} a5 {[%emt 0:00:31]} 28. Rg5 {[%emt 0:02:42]} b4 {[%emt 0:00:53]} 29. axb4 {[%emt 0:00:06]} axb4 {[%emt 0:00:03]} 30. Ne2 {[%emt 0:00:46]} Rd3 {[%emt 0:01:34]} 31. Qf4 {[%emt 0:00:43]} Rd1 {[%emt 0:02:55]} 32. Rxd1 {[%emt 0:01:41]} Qxd1+ {[%emt 0:00:03]} 33. Kh2 {[%emt 0:00:03]} Qxe2 {[%emt 0:01:58]} 34. cxb4 {[%emt 0:00:21]} Rc4 {[%emt 0:00:18]} 35. Qg3 {[%emt 0:00:21]} Qe4 {[%emt 0:00:33]} 0-1

[Event "FIDE CB Open 2022"]
[Site "Ceske Budejovice"]
[Date "2022.07.03"]
[Round "3.43"]
[White "Krejci, Vera Marie"]
[Black "Ondrejat, Miroslav"]
[Result "0-1"]
[ECO "B52"]
[WhiteElo "1554"]
[BlackElo "1903"]
[Annotator "RC"]
[PlyCount "131"]
[EventDate "2022.07.01"]
[EventType "swiss"]
[EventCountry "CZE"]
[SourceTitle "playchess.com"]
[Source "ChessBase"]
[SourceQuality "1"]
[TimeControl "40/5400+30:1800+30"]

1. e4 {[%emt 0:00:04]} c5 {[%emt 0:00:02]} 2. Nf3 {[%emt 0:00:06]} d6 {[%emt 0:00:09]} 3. Bb5+ {[%emt 0:00:05]} Bd7 {[%emt 0:00:59]} 4. Bxd7+ {[%emt 0:00:08]} Qxd7 {[%emt 0:00:02]} 5. c4 {[%emt 0:00:37]} Nc6 {[%emt 0:00:06]} 6. Nc3 {[%emt 0:01:02]} g6 {[%emt 0:00:08]} 7. d4 {[%emt 0:01:29]} cxd4 {[%emt 0:00:06]} 8. Nxd4 {[%emt 0:00:12]} Bg7 {[%emt 0:00:03]} 9. Be3 {[%emt 0:15:49]} Nf6 {[%emt 0:04:21]} 10. h3 {[%emt 0:00:48]} O-O {[%emt 0:00:29]} 11. O-O {[%emt 0:00:20]} Rac8 {[%emt 0:01:45]} 12. b3 {[%emt 0:04:16]} Rfd8 {[%emt 0:07:38]} 13. Rc1 {[%emt 0:01:34]} e6 {[%emt 0:02:40]} 14. Nde2 {[%emt 0:16:31]} b6 {[%emt 0:12:45]} 15. Nf4 {[%emt 0:08:04]} Qb7 {[%emt 0:03:14]} 16. Qe2 {[%emt 0:05:50]} Ne7 {[%emt 0:03:51]} 17. Bd2 {[%emt 0:01:10]} Rd7 {[%emt 0:05:56]} 18. Rfe1 {[%emt 0:05:33]} Rcd8 {[%emt 0:04:42]} 19. Qf3 {[%emt 0:03:49]} Nc6 {[%emt 0:07:14]} 20. Nfe2 {[%emt 0:15:15]} h6 {[%emt 0:07:15]} 21. Nf4 {[%emt 0:02:57]} Ne5 {[%emt 0:03:34]} 22. Qe2 {[%emt 0:01:47]} g5 {[%emt 0:01:51]} 23. Nd3 {[%emt 0:00:34]} Nxd3 {[%emt 0:00:49]} 24. Qxd3 {[%emt 0:00:05]} d5 {[%emt 0:00:27]} 25. exd5 {[%emt 0:04:24]} exd5 {[%emt 0:00:25]} 26. cxd5 {[%emt 0:00:36]} Nxd5 {[%emt 0:00:17]} 27. Nxd5 {[%emt 0:00:41]} Rxd5 {[%emt 0:02:33]} 28. Qf3 {[%emt 0:00:05]} Qd7 {[%emt 0:03:15]} 29. Bb4 {[%emt 0:01:34]} Rf5 {[%emt 0:02:50]} 30. Qe2 {[%emt 0:05:35]} Bd4 {[%emt 0:01:50]} 31. Rf1 {[%emt 0:00:45]} a5 {[%emt 0:06:09]} 32. Bc3 {[%emt 0:01:15]} Bxc3 {[%emt 0:03:54]} 33. Rxc3 {[%emt 0:00:02]} Qd2 {[%emt 0:00:23]} 34. Qxd2 {[%emt 0:00:36]} Rxd2 {[%emt 0:00:09]} 35. a4 {[%emt 0:00:04]} Rb2 {[%emt 0:01:48]} 36. f3 {[%emt 0:01:46]} Rd5 {[%emt 0:01:53]} 37. Rfc1 {[%emt 0:02:06]} Rdd2 {[%emt 0:00:18]} 38. g4 {[%emt 0:01:05]} Kg7 {[%emt 0:01:07]} 39. Re1 {[%emt 0:00:45]} Rg2+ {[%emt 0:04:00]} 40. Kh1 {[%emt 0:00:04]} Rg3 {[%emt 0:00:28]} 41. Ree3 {[%emt 0:01:59]} Rxh3+ {[%emt 0:05:06]} 42. Kg1 {[%emt 0:00:04]} Rhh2 {[%emt 0:06:16]} 43. Red3 {[%emt 0:09:50]} Rbg2+ {[%emt 0:06:25]} 44. Kf1 {[%emt 0:00:06]} Rc2 {[%emt 0:00:17]} 45. Rxc2 {[%emt 0:00:11]} Rxc2 {[%emt 0:00:12]} 46. Rd6 {[%emt 0:00:39]} Rc3 {[%emt 0:00:13]} 47. Rxb6 {[%emt 0:00:05]} Rxf3+ {[%emt 0:00:07]} 48. Ke2 {[%emt 0:00:21]} Rf4 {[%emt 0:00:26]} 49. Rb5 {[%emt 0:01:08]} Rxg4 {[%emt 0:00:19]} 50. Rxa5 {[%emt 0:00:05]} h5 {[%emt 0:02:00]} 51. Rb5 {[%emt 0:01:50]} Kg6 {[%emt 0:07:05]} 52. a5 {[%emt 0:01:07]} Rg2+ {[%emt 0:01:25]} 53. Kf1 {[%emt 0:01:19]} Ra2 {[%emt 0:00:11]} 54. b4 {[%emt 0:01:05]} h4 {[%emt 0:00:12]} 55. Rb6+ {[%emt 0:01:03]} Kh5 {[%emt 0:03:21]} 56. a6 {[%emt 0:01:14]} h3 {[%emt 0:00:40]} 57. Kg1 {[%emt 0:00:07]} f5 {[%emt 0:03:11]} 58. b5 {[%emt 0:02:20]} g4 {[%emt 0:05:53]} 59. Rc6 {[%emt 0:11:01]} Ra1+ {[%emt 0:00:16]} 60. Kh2 {[%emt 0:00:48]} f4 {[%emt 0:02:00]} 61. Rc7 {[%emt 0:01:28]} Ra2+ {[%emt 0:00:14]} 62. Kh1 {[%emt 0:00:23]} g3 {[%emt 0:02:44]} 63. Rc1 {[%emt 0:01:12]} Kg4 {[%emt 0:01:01]} 64. Rb1 {[%emt 0:01:31]} h2 {[%emt 0:00:28]} 65. b6 {[%emt 0:00:50]} Kh3 {[%emt 0:00:07]} 66. b7 {[%emt 0:00:31]} 0-1

[Event "FIDE CB Open 2022"]
[Site "Ceske Budejovice"]
[Date "2022.07.03"]
[Round "3.44"]
[White "Shirinyan, Daniel"]
[Black "Travnicek, Jaroslav"]
[Result "1/2-1/2"]
[ECO "A07"]
[WhiteElo "1876"]
[BlackElo "1730"]
[Annotator "NA"]
[PlyCount "134"]
[EventDate "2022.07.01"]
[EventType "swiss"]
[EventCountry "CZE"]
[SourceTitle "playchess.com"]
[Source "ChessBase"]
[SourceQuality "1"]
[TimeControl "40/5400+30:1800+30"]

1. Nf3 {[%emt 0:00:06]} d5 {[%emt 0:00:21]} 2. g3 {[%emt 0:00:05]} Nf6 {[%emt 0:00:20]} 3. Bg2 {[%emt 0:00:22]} e6 {[%emt 0:00:23]} 4. O-O {[%emt 0:00:55]} Be7 {[%emt 0:01:14]} 5. d3 {[%emt 0:00:48]} O-O {[%emt 0:00:24]} 6. Nbd2 {[%emt 0:00:56]} Nbd7 {[%emt 0:03:36]} 7. Re1 {[%emt 0:03:51]} c5 {[%emt 0:04:06]} 8. b3 {[%emt 0:07:56]} e5 {[%emt 0:10:13]} 9. e4 {[%emt 0:03:10]} dxe4 {[%emt 0:04:54]} 10. dxe4 {[%emt 0:00:29]} Qc7 {[%emt 0:01:52]} 11. Bb2 {[%emt 0:17:57]} Rd8 {[%emt 0:06:35]} 12. Qe2 {[%emt 0:11:34]} Ne8 {[%emt 0:09:37]} 13. Nc4 {[%emt 0:00:37]} f6 {[%emt 0:00:55]} 14. Ne3 {[%emt 0:06:11]} Nf8 {[%emt 0:04:54]} 15. Nd5 {[%emt 0:01:00]} Qd6 {[%emt 0:10:31]} 16. Rad1 {[%emt 0:00:24]} Bd7 {[%emt 0:05:16]} 17. Nd2 {[%emt 0:11:55]} b5 {[%emt 0:10:38]} 18. c4 {[%emt 0:00:06]} Nc7 {[%emt 0:02:02]} 19. Nf1 {[%emt 0:01:36]} Nxd5 {[%emt 0:01:17]} 20. Rxd5 {[%emt 0:00:50]} Qb6 {[%emt 0:01:06]} 21. Ne3 {[%emt 0:03:36]} Bc6 {[%emt 0:01:57]} 22. Rxd8 {[%emt 0:00:11]} Rxd8 {[%emt 0:00:02]} 23. Nd5 {[%emt 0:00:38]} Bxd5 {[%emt 0:01:02]} 24. exd5 {[%emt 0:00:23]} bxc4 {[%emt 0:00:36]} 25. bxc4 {[%emt 0:00:31]} Bd6 {[%emt 0:00:57]} 26. Bc3 {[%emt 0:04:14]} Rb8 {[%emt 0:01:12]} 27. Be4 {[%emt 0:06:05]} Qc7 {[%emt 0:00:55]} 28. Bc2 {[%emt 0:02:03]} Qd7 {[%emt 0:01:41]} 29. Qf3 {[%emt 0:00:27]} Qf7 {[%emt 0:01:43]} 30. h4 {[%emt 0:00:37]} Ng6 {[%emt 0:01:03]} 31. Bf5 {[%emt 0:00:32]} Nf8 {[%emt 0:00:36]} 32. h5 {[%emt 0:00:28]} g6 {[%emt 0:01:44]} 33. hxg6 {[%emt 0:00:12]} hxg6 {[%emt 0:00:09]} 34. Bc2 {[%emt 0:02:19]} Kg7 {[%emt 0:01:37]} 35. Kg2 {[%emt 0:00:28]} Nh7 {[%emt 0:01:12]} 36. Rh1 {[%emt 0:01:09]} Rh8 {[%emt 0:02:15]} 37. Qg4 {[%emt 0:01:57]} Nf8 {[%emt 0:03:38]} 38. Rxh8 {[%emt 0:02:52]} Kxh8 {[%emt 0:00:02]} 39. Ba4 {[%emt 0:02:49]} Kg7 {[%emt 0:02:16]} 40. Qh3 {[%emt 0:03:55]} Kg8 {[%emt 0:02:36]} 41. Qc8 {[%emt 0:33:27]} Qc7 {[%emt 0:31:53]} 42. Qe8 {[%emt 0:00:00]} Qe7 {[%emt 0:00:00]} 43. Qc8 {[%emt 0:00:00]} Qc7 {[%emt 0:00:00]} 44. Qg4 {[%emt 0:00:00]} Qe7 {[%emt 0:00:00]} 45. Bc2 {[%emt 0:00:00]} Kg7 {[%emt 0:00:00]} 46. Qh4 {[%emt 0:00:00]} Qd7 {[%emt 0:00:00]} 47. Bd2 {[%emt 0:00:00]} g5 {[%emt 0:00:00]} 48. Qe4 {[%emt 0:00:00]} Qf7 {[%emt 0:00:00]} 49. Qg4 {[%emt 0:00:00]} Kh6 {[%emt 0:00:00]} 50. Qh3+ {[%emt 0:00:00]} Qh5 {[%emt 0:00:00]} 51. Qc8 {[%emt 0:00:00]} Qf7 {[%emt 0:03:25]} 52. Bf5 {[%emt 0:00:00]} Qc7 {[%emt 0:00:44]} 53. Qe8 {[%emt 0:00:00]} Qe7 {[%emt 0:00:36]} 54. Qb5 {[%emt 0:00:00]} Qc7 {[%emt 0:01:07]} 55. Be3 {[%emt 0:00:00]} Kg7 {[%emt 0:01:07]} 56. a4 {[%emt 0:00:00]} Ng6 {[%emt 0:00:58]} 57. a5 {[%emt 0:00:00]} Ne7 {[%emt 0:00:17]} 58. Be6 {[%emt 0:00:00]} Kf8 {[%emt 0:00:55]} 59. Qb1 {[%emt 0:00:00]} Kg7 {[%emt 0:00:20]} 60. a6 {[%emt 0:00:00]} Nc8 {[%emt 0:00:25]} 61. Qb5 {[%emt 0:00:00]} Nb6 {[%emt 0:00:30]} 62. Kf1 {[%emt 0:00:24]} Kf8 {[%emt 0:00:27]} 63. Ke2 {[%emt 0:00:27]} Qh7 {[%emt 0:00:23]} 64. Bxc5 $16 {[%emt 0:03:43]} Qe4+ {[%emt 0:01:20]} 65. Kf1 {[%emt 0:04:58]} Qh1+ {[%emt 0:00:02]} 66. Ke2 {[%emt 0:00:05]} Qe4+ {[%emt 0:00:06]} 67. Kf1 {[%emt 0:02:49]} Qh1+ {[%emt 0:00:02]} 1/2-1/2

[Event "FIDE CB Open 2022"]
[Site "Ceske Budejovice"]
[Date "2022.07.03"]
[Round "3.45"]
[White "Pavlis, Matej"]
[Black "Simacek, Vaclav"]
[Result "1/2-1/2"]
[ECO "A46"]
[WhiteElo "1625"]
[BlackElo "1856"]
[Annotator "NA"]
[PlyCount "104"]
[EventDate "2022.07.01"]
[EventType "swiss"]
[EventCountry "CZE"]
[SourceTitle "playchess.com"]
[Source "ChessBase"]
[SourceQuality "1"]
[TimeControl "40/5400+30:1800+30"]

1. d4 {[%emt 0:00:04]} Nf6 {[%emt 0:00:20]} 2. Nf3 {[%emt 0:00:39]} e6 {[%emt 0:01:56]} 3. e3 {[%emt 0:02:29]} c5 {[%emt 0:00:24]} 4. c3 {[%emt 0:00:39]} Nc6 {[%emt 0:00:20]} 5. Bd3 {[%emt 0:00:56]} cxd4 {[%emt 0:02:11]} 6. cxd4 {[%emt 0:00:30]} Nb4 {[%emt 0:00:43]} 7. Nc3 {[%emt 0:01:30]} Nxd3+ {[%emt 0:01:21]} 8. Qxd3 {[%emt 0:00:08]} Be7 {[%emt 0:01:44]} 9. e4 {[%emt 0:02:45]} O-O {[%emt 0:01:17]} 10. O-O {[%emt 0:06:15]} b6 {[%emt 0:01:37]} 11. Bg5 {[%emt 0:05:01]} a5 {[%emt 0:06:46]} 12. Rfe1 {[%emt 0:14:42]} Ba6 {[%emt 0:00:38]} 13. Qd2 {[%emt 0:06:09]} h6 {[%emt 0:00:50]} 14. Bh4 {[%emt 0:00:48]} d5 {[%emt 0:06:42]} 15. exd5 {[%emt 0:06:52]} Nxd5 {[%emt 0:00:16]} 16. Bxe7 {[%emt 0:01:44]} Nxe7 {[%emt 0:00:11]} 17. Rac1 {[%emt 0:01:24]} Ng6 {[%emt 0:02:47]} 18. d5 {[%emt 0:10:41]} exd5 {[%emt 0:09:50]} 19. Qxd5 {[%emt 0:00:12]} Nf4 {[%emt 0:02:42]} 20. Qxd8 {[%emt 0:07:07]} Rfxd8 {[%emt 0:02:12]} 21. Rcd1 {[%emt 0:00:15]} Rxd1 {[%emt 0:03:11]} 22. Rxd1 {[%emt 0:00:07]} Ne2+ {[%emt 0:00:47]} 23. Nxe2 {[%emt 0:00:15]} Bxe2 {[%emt 0:00:05]} 24. Rd2 {[%emt 0:00:14]} Bxf3 {[%emt 0:01:57]} 25. gxf3 {[%emt 0:01:27]} Re8 {[%emt 0:00:30]} 26. Rd6 {[%emt 0:00:30]} Rb8 {[%emt 0:00:30]} 27. b4 {[%emt 0:00:30]} axb4 {[%emt 0:00:30]} 28. Rd4 {[%emt 0:00:30]} Re8 {[%emt 0:00:30]} 29. Rxb4 {[%emt 0:00:30]} Kh7 {[%emt 0:00:30]} 30. h3 {[%emt 0:00:46]} Re6 {[%emt 0:00:30]} 31. a4 {[%emt 0:00:31]} f5 {[%emt 0:01:02]} 32. Rb5 {[%emt 0:00:39]} Kg6 {[%emt 0:05:43]} 33. a5 {[%emt 0:00:16]} bxa5 {[%emt 0:00:22]} 34. Rxa5 {[%emt 0:00:02]} Rd6 {[%emt 0:00:38]} 35. Kg2 {[%emt 0:00:41]} Rd4 {[%emt 0:01:10]} 36. Kg3 {[%emt 0:01:37]} Kg5 {[%emt 0:00:18]} 37. Rc5 {[%emt 0:08:01]} g6 {[%emt 0:00:13]} 38. Rc6 {[%emt 0:00:38]} Kh5 {[%emt 0:08:20]} 39. Rc5 {[%emt 0:02:27]} Kg5 {[%emt 0:03:57]} 40. Rc6 {[%emt 0:00:26]} f4+ {[%emt 0:00:08]} 41. Kg2 {[%emt 0:30:11]} Rd5 {[%emt 0:34:50]} 42. Rc4 {[%emt 0:02:04]} Kf5 {[%emt 0:01:10]} 43. Re4 {[%emt 0:00:21]} g5 {[%emt 0:03:53]} 44. Re8 {[%emt 0:01:36]} Rd6 {[%emt 0:02:39]} 45. Re4 {[%emt 0:00:36]} h5 {[%emt 0:00:30]} 46. Re8 {[%emt 0:00:37]} Rd5 {[%emt 0:02:58]} 47. Rh8 {[%emt 0:00:38]} Kg6 {[%emt 0:00:06]} 48. Rg8+ {[%emt 0:00:22]} Kh7 {[%emt 0:01:03]} 49. Ra8 {[%emt 0:00:21]} Rd7 {[%emt 0:00:18]} 50. Ra5 {[%emt 0:00:58]} Rg7 {[%emt 0:00:15]} 51. Kh2 {[%emt 0:00:50]} Rg6 {[%emt 0:03:38]} 52. h4 {[%emt 0:01:00]} Kh6 {[%emt 0:10:52]} 1/2-1/2

[Event "FIDE CB Open 2022"]
[Site "Ceske Budejovice"]
[Date "2022.07.03"]
[Round "3.46"]
[White "Holub, Adam"]
[Black "Hrbek, Jachym"]
[Result "0-1"]
[ECO "C42"]
[WhiteElo "1817"]
[BlackElo "1695"]
[Annotator "NA"]
[PlyCount "63"]
[EventDate "2022.07.01"]
[EventType "swiss"]
[EventCountry "CZE"]
[SourceTitle "playchess.com"]
[Source "ChessBase"]
[SourceQuality "1"]
[TimeControl "40/5400+30:1800+30"]

1. e4 {[%emt 0:00:47]} e5 {[%emt 0:00:08]} 2. Nf3 {[%emt 0:00:44]} Nf6 {[%emt 0:00:15]} 3. Nxe5 {[%emt 0:00:40]} d6 {[%emt 0:00:12]} 4. Nf3 {[%emt 0:00:18]} Nxe4 {[%emt 0:00:10]} 5. Nc3 {[%emt 0:00:13]} Nxc3 {[%emt 0:06:23]} 6. dxc3 {[%emt 0:00:07]} Be7 {[%emt 0:00:43]} 7. Be3 {[%emt 0:00:45]} Nc6 {[%emt 0:02:19]} 8. Qd2 {[%emt 0:00:46]} Bf5 {[%emt 0:03:57]} 9. O-O-O {[%emt 0:04:51]} a6 {[%emt 0:14:50]} 10. h3 {[%emt 0:02:08]} Qd7 {[%emt 0:02:04]} 11. Nd4 {[%emt 0:16:40]} Be4 {[%emt 0:13:03]} 12. f3 {[%emt 0:06:43]} Bg6 {[%emt 0:00:15]} 13. h4 {[%emt 0:04:15]} h6 {[%emt 0:05:49]} 14. Bc4 {[%emt 0:11:50]} Ne5 {[%emt 0:06:53]} 15. Bb3 {[%emt 0:02:31]} c5 {[%emt 0:01:05]} 16. h5 {[%emt 0:04:39]} Bh7 {[%emt 0:04:08]} 17. f4 {[%emt 0:06:08]} c4 {[%emt 0:19:01]} 18. fxe5 {[%emt 0:02:41]} cxb3 {[%emt 0:00:05]} 19. Nxb3 {[%emt 0:03:18]} O-O-O {[%emt 0:04:48]} 20. Qd4 {[%emt 0:18:38]} Qf5 {[%emt 0:02:56]} 21. Qc4+ {[%emt 0:01:28]} Kb8 {[%emt 0:00:30]} 22. Nd4 {[%emt 0:00:49]} Qe4 {[%emt 0:03:20]} 23. Rhe1 {[%emt 0:02:02]} dxe5 {[%emt 0:01:33]} 24. Qxf7 {[%emt 0:02:09]} Rxd4 {[%emt 0:01:12]} 25. Rd3 {[%emt 0:05:31]} Rxd3 {[%emt 0:02:39]} 26. cxd3 {[%emt 0:01:19]} Qxd3 {[%emt 0:00:31]} 27. Qb3 {[%emt 0:00:53]} Qb1+ {[%emt 0:00:20]} 28. Kd2 {[%emt 0:00:06]} Rd8+ {[%emt 0:00:34]} 29. Bd4 {[%emt 0:01:09]} Qd3+ {[%emt 0:00:17]} 30. Kc1 {[%emt 0:00:07]} Bg5+ {[%emt 0:00:11]} 31. Re3 {[%emt 0:00:21]} Bxe3+ {[%emt 0:00:10]} 32. Bxe3 {[%emt 0:00:05]} 0-1